bitfinex/quotes_SOLUSD_20250904
["timestamp","ask_amount","ask_price","bid_price","bid_amount"]
[1757025506192,0.73,203.93,203.92,37.76]
[1757025507880,0.73,203.93,203.89,4.90459159]
[1757025508186,3.90277124,203.91,203.9,37.76]
[1757025508486,4.57277124,203.91,203.9,37.76]
[1757025509275,9.47690908,203.91,203.88,1e-08]
[1757025509583,5.57413784,203.91,203.88,37.76000001]
[1757025509764,0.67,203.9,203.88,37.76000001]
[1757025509970,0.67,203.89,203.88,37.76000001]
[1757025511582,0.67,203.89,203.88,1e-08]
[1757025514393,0.67,203.89,203.88,37.76000001]
[1757025514590,0.67,203.89,203.88,1e-08]
[1757025514793,0.67,203.89,203.88,37.76000001]
[1757025518996,5.57460542,203.89,203.88,1e-08]
[1757025519192,5.57460542,203.89,203.88,37.76000001]
[1757025519594,0.67,203.89,203.88,37.76000001]
[1757025520292,0.06,203.89,203.88,41.66277125]
[1757025523279,0.73,203.89,203.88,41.66277125]
[1757025524901,0.06,203.89,203.88,41.66277125]
[1757025530816,0.78,203.89,203.88,41.66277125]
[1757025531692,0.06,203.89,203.88,47.25761723]
[1757025532397,0.06,203.89,203.88,46.56761723]
[1757025537017,0.06,203.89,203.88,47.25761723]
[1757025537615,0.06,203.89,203.88,46.56761723]
[1757025541413,0.06,203.89,203.88,47.25761723]
[1757025541602,0.06,203.89,203.88,46.56761723]
[1757025543626,0.06,203.89,203.88,45.16202726]
[1757025546329,0.06,203.89,203.88,1e-08]
[1757025546509,0.06,203.89,203.88,40.25718128]
[1757025547104,0.06,203.89,203.88,37.76000001]
[1757025547317,0.06,203.89,203.88,40.25718128]
[1757025548128,0.06,203.89,203.88,45.16202726]
[1757025549128,0.06,203.89,203.88,40.25718128]
[1757025549323,0.06,203.89,203.88,45.16202726]
[1757025550216,0.06,203.89,203.88,59.93810586]
[1757025550417,0.06,203.92,203.89,13.59559401]
[1757025550626,0.06,203.92,203.91,16.09277528]
[1757025551122,0.06,203.92,203.91,18.7481358]
[1757025553427,0.06,203.92,203.91,23.65226016]
[1757025553735,0.78,203.92,203.88,1e-08]
[1757025553913,0.78,203.92,203.88,13.59559402]
[1757025554228,0.72,203.91,203.89,38.6]
[1757025554418,0.72,203.9,203.89,38.6]
[1757025557134,0.72,203.9,203.89,38.58]
[1757025557432,0.06,203.92,203.89,41.07718127]
[1757025557731,0.72,203.91,203.9,38.58]
[1757025558130,0.69,203.91,203.88,1e-08]
[1757025558522,2.49718127,203.89,203.88,1e-08]
[1757025558711,28.49718127,203.89,203.88,1e-08]
[1757025558906,26.69,203.89,203.86,0.03]
[1757025559124,26.0,203.88,203.86,0.03]
[1757025559328,26.0,203.87,203.86,0.03]
[1757025559613,26.69,203.87,203.86,0.03]
[1757025560231,0.69,203.87,203.86,0.03]
[1757025562833,3.18718127,203.87,203.86,0.03]
[1757025563225,0.69,203.87,203.86,0.03]
[1757025570946,0.06,203.92,203.86,2.52718127]
[1757025571132,0.75,203.92,203.87,42.52718127]
[1757025571638,0.06,203.92,203.9,2.49718127]
[1757025571829,0.06,203.92,203.9,42.52718127]
[1757025572947,0.06,203.92,203.9,44.22425102]
[1757025573150,0.06,203.92,203.9,46.72143229]
[1757025573339,0.69,203.91,203.9,39.3]
[1757025574837,0.69,203.91,203.86,4.93511568]
[1757025575037,0.69,203.9,203.87,41.79718127]
[1757025576029,0.69,203.9,203.87,46.70223356]
[1757025576229,0.69,203.9,203.87,41.79718127]
[1757025576930,0.69,203.89,203.88,39.26]
[1757025577142,0.69,203.89,203.86,39.29]
[1757025577449,0.69,203.88,203.86,39.29]
[1757025578040,0.69,203.88,203.87,39.3]
[1757025579850,0.69,203.9,203.87,39.3]
[1757025580244,0.69,203.89,203.87,39.3]
[1757025580553,0.69,203.9,203.87,39.3]
[1757025580935,0.69,203.89,203.87,39.3]
[1757025582139,0.69,203.88,203.87,39.3]
[1757025582339,0.69,203.88,203.86,0.03]
[1757025582544,3.18718127,203.88,203.86,0.03]
[1757025584455,2.49718127,203.88,203.86,0.03]
[1757025584757,0.69,203.87,203.86,0.03]
[1757025585250,2.49718127,203.89,203.86,0.03]
[1757025585458,3.18718127,203.89,203.86,0.03]
[1757025585652,0.69,203.88,203.86,0.03]
[1757025587163,2.49718127,203.89,203.86,0.03]
[1757025587365,3.18718127,203.89,203.86,0.03]
[1757025587560,0.69,203.88,203.86,0.03]
[1757025588361,0.69,203.87,203.86,0.03]
[1757025588753,2.49718127,203.88,203.86,0.03]
[1757025589049,3.18718127,203.88,203.86,0.03]
[1757025590952,3.18718127,203.87,203.86,0.03]
[1757025594265,2.49718127,203.88,203.86,0.03]
[1757025594571,3.18718127,203.88,203.86,0.03]
[1757025595665,2.49718127,203.88,203.86,0.03]
[1757025596049,3.18718127,203.88,203.86,0.03]
[1757025596649,0.69,203.87,203.86,0.03]
[1757025603963,30.10224814,203.91,203.86,0.69]
[1757025604166,0.69,203.9,203.86,0.03]
[1757025604365,2.49718127,203.89,203.86,0.03]
[1757025604565,2.49718127,203.88,203.86,0.03]
[1757025604770,3.18718127,203.88,203.86,0.03]
[1757025605072,2.49718127,203.87,203.86,0.03]
[1757025605473,30.5950744,203.87,203.86,0.03]
[1757025605678,4.5950744,203.87,203.86,0.03]
[1757025606258,26.69,203.87,203.86,0.03]
[1757025606780,0.69,203.87,203.86,0.03]
[1757025607676,0.75,203.87,203.86,0.03]
[1757025611269,0.06,203.87,203.86,0.69]
[1757025612159,0.06,203.87,203.86,0.03]
[1757025612482,0.75,203.87,203.86,0.03]
[1757025612663,0.06,203.87,203.86,0.03]
[1757025614184,0.75,203.87,203.86,0.03]
[1757025614484,4.6550744,203.87,203.86,0.03]
[1757025615094,0.06,203.87,203.86,0.03]
[1757025616066,0.75,203.87,203.86,0.03]
[1757025619594,9.56016097,203.87,203.86,0.03]
[1757025619886,35.56016097,203.87,203.86,0.03]
[1757025620111,26.0,203.86,203.85,0.03]
[1757025620265,29.9050744,203.86,203.85,0.03]
[1757025620466,34.72732254,203.86,203.85,0.03]
[1757025621995,39.63264972,203.86,203.85,0.03]
[1757025622198,35.53040158,203.86,203.85,0.03]
[1757025623392,39.63264972,203.86,203.85,0.03]
[1757025625889,41.59974997,203.86,203.85,0.03]
[1757025626382,39.63264972,203.86,203.85,0.03]
[1757025626789,35.72757532,203.86,203.85,0.03]
[1757025626991,39.63264972,203.86,203.85,0.03]
[1757025627997,8.81040158,203.86,203.85,0.03]
[1757025628195,35.53040158,203.86,203.85,0.03]
[1757025628898,31.62532718,203.86,203.85,0.03]
[1757025629199,35.53040158,203.86,203.85,0.03]
[1757025631285,35.53040158,203.86,203.85,0.03]
[1757025638808,30.90532718,203.86,203.85,0.03]
[1757025638988,34.81040158,203.86,203.85,0.03]
[1757025639889,35.53040158,203.86,203.85,0.03]
[1757025643311,35.59040158,203.86,203.85,0.03]
[1757025647808,34.87040158,203.86,203.85,0.03]
[1757025648794,35.58040158,203.86,203.85,0.03]
[1757025649421,34.87040158,203.86,203.85,0.03]
[1757025649614,35.58040158,203.86,203.85,0.03]
[1757025653719,0.06,203.86,203.85,0.69]
[1757025653904,0.06,203.86,203.85,4.5950744]
[1757025654219,0.06,203.86,203.85,18.19066841]
[1757025654732,0.06,203.86,203.85,20.15680177]
[1757025655927,0.06,203.86,203.85,21.15729518]
[1757025656100,0.06,203.86,203.85,25.06236958]
[1757025663335,0.06,203.86,203.85,63.40236958]
[1757025663714,0.06,203.86,203.85,20.49729518]
[1757025664028,0.06,203.86,203.85,62.72236958]
[1757025664721,0.06,203.86,203.85,63.38236958]
[1757025665432,0.06,203.86,203.85,61.97517552]
[1757025665828,0.06,203.86,203.85,23.65517552]
[1757025666129,0.06,203.86,203.85,61.97517552]
[1757025666535,0.06,203.86,203.85,61.31517552]
[1757025667631,0.06,203.86,203.85,20.49729518]
[1757025667834,0.77,203.86,203.85,0.03]
[1757025668521,3.26788034,203.86,203.85,0.03]
[1757025669431,8.17320752,203.86,203.85,0.03]
[1757025673629,34.17320752,203.86,203.85,0.03]
[1757025675241,8.17320752,203.86,203.85,0.03]
[1757025675540,10.14040451,203.86,203.85,0.03]
[1757025675728,48.40040451,203.86,203.85,0.03]
[1757025675931,26.0,203.84,203.83,0.03]
[1757025676142,2.49788034,203.84,203.83,0.03]
[1757025676327,29.20788034,203.84,203.83,0.03]
[1757025676640,2.49788034,203.84,203.83,0.03]
[1757025676841,3.20788034,203.84,203.83,0.03]
[1757025677545,8.11368881,203.84,203.83,0.03]
[1757025679520,34.11368881,203.84,203.83,0.03]
[1757025679725,8.11368881,203.84,203.83,0.03]
[1757025679920,34.11368881,203.84,203.83,0.03]
[1757025680234,8.11368881,203.84,203.83,0.03]
[1757025681044,72.35368881,203.84,203.83,0.03]
[1757025681344,46.35368881,203.84,203.83,0.03]
[1757025684143,48.32117608,203.84,203.83,0.03]
[1757025685045,10.08117608,203.84,203.83,0.03]
[1757025685344,48.30117608,203.84,203.83,0.03]
[1757025687352,48.28117608,203.84,203.83,0.03]
[1757025691649,6.87329574,203.84,203.83,0.03]
[1757025691860,2.49788034,203.85,203.83,0.03]
[1757025692044,2.49788034,203.85,203.83,0.71]
[1757025692738,28.49788034,203.85,203.83,0.71]
[1757025692940,33.40355626,203.85,203.83,0.71]
[1757025694565,33.46355626,203.85,203.83,0.71]
[1757025694938,33.46355626,203.85,203.83,0.03]
[1757025695745,3.19788034,203.84,203.83,0.03]
[1757025696258,28.49788034,203.84,203.83,0.03]
[1757025696447,29.19788034,203.84,203.83,0.03]
[1757025696858,3.19788034,203.84,203.83,0.03]
[1757025697040,29.19788034,203.84,203.83,0.03]
[1757025697353,34.10368881,203.84,203.83,0.03]
[1757025698442,72.22368881,203.84,203.83,0.03]
[1757025698952,74.19107931,203.84,203.83,0.03]
[1757025703842,36.07107931,203.84,203.83,0.03]
[1757025704042,74.19107931,203.84,203.83,0.03]
[1757025708152,78.30486682,203.84,203.83,0.03]
[1757025711174,74.19107931,203.84,203.83,0.03]
[1757025713673,74.25107931,203.84,203.83,0.03]
[1757025714170,74.25107931,203.84,203.81,0.03]
[1757025714171,12.4894017,203.83,203.81,0.03]
[1757025714377,50.6094017,203.82,203.81,0.03]
[1757025714569,51.2694017,203.82,203.81,0.03]
[1757025715160,58.1433724,203.82,203.81,0.03]
[1757025718280,48.15185104,203.82,203.81,0.03]
[1757025718461,6.8739707,203.82,203.81,0.03]
[1757025718786,33.4041702,203.82,203.81,0.03]
[1757025719772,56.32141621,203.82,203.74,0.72]
[1757025720082,26.0,203.77,203.75,0.72]
[1757025720482,30.9075402,203.77,203.75,0.72]
[1757025720870,4.9075402,203.77,203.75,0.72]
[1757025721072,7.40542054,203.77,203.75,0.72]
[1757025721273,2.49788034,203.76,203.7,16.09347435]
[1757025721871,2.49788034,203.76,203.71,0.72]
[1757025722987,7.40570726,203.76,203.71,0.72]
[1757025723901,2.49788034,203.76,203.71,0.72]
[1757025724088,33.40540789,203.77,203.71,3.21788034]
[1757025724273,33.40540789,203.77,203.72,0.72]
[1757025724673,26.0,203.78,203.74,2.49788034]
[1757025724895,7.40465168,203.8,203.75,0.72]
[1757025725582,3.90797877,203.79,203.75,0.72]
[1757025725984,29.90797877,203.79,203.75,0.72]
[1757025726280,3.90797877,203.76,203.73,0.72]
[1757025726485,3.90797877,203.75,203.74,0.72]
[1757025727796,3.90797877,203.76,203.74,0.72]
[1757025728178,8.81574116,203.76,203.74,0.72]
[1757025728575,8.81574116,203.76,203.75,0.72]
[1757025728781,4.90776239,203.76,203.75,0.72]
[1757025729303,3.90797877,203.76,203.72,0.72]
[1757025729503,3.90797877,203.76,203.73,0.72]
[1757025729685,3.90797877,203.76,203.74,0.72]
[1757025730903,8.81573301,203.76,203.74,0.72]
[1757025731498,8.81573301,203.76,203.71,13.62559401]
[1757025731801,8.81573301,203.76,203.72,0.72]
[1757025732420,4.90775424,203.76,203.73,0.72]
[1757025733009,4.90775424,203.76,203.74,0.72]
[1757025733302,4.90775424,203.76,203.72,0.72]
[1757025733505,4.90775424,203.76,203.73,0.72]
[1757025735506,5.56755228,203.77,203.73,0.72]
[1757025735687,9.47553105,203.77,203.73,0.72]
[1757025736097,8.81553105,203.77,203.73,0.72]
[1757025736400,8.81553105,203.77,203.71,17.53357278]
[1757025736910,9.47553105,203.77,203.72,0.72]
[1757025737088,8.8157842,203.76,203.72,0.72]
[1757025737289,3.90797877,203.75,203.71,13.62559401]
[1757025737480,4.56797877,203.75,203.71,0.75]
[1757025737699,4.56797877,203.74,203.71,0.03]
[1757025738000,3.90797877,203.73,203.71,0.03]
[1757025738181,3.90797877,203.72,203.71,0.03]
[1757025738378,4.57797877,203.72,203.71,0.03]
[1757025738990,3.90797877,203.72,203.71,0.03]
[1757025739195,8.81667698,203.72,203.71,0.03]
[1757025741816,4.90869821,203.72,203.71,0.03]
[1757025744508,9.4864688,203.73,203.71,0.03]
[1757025745310,3.90797877,203.72,203.71,0.03]
[1757025745700,8.8164688,203.73,203.71,0.03]
[1757025745916,0.67,203.72,203.71,0.03]
[1757025746619,8.8164688,203.73,203.71,0.03]
[1757025746825,9.4864688,203.73,203.71,0.03]
[1757025747521,3.65865417,203.72,203.71,0.03]
[1757025747917,3.65865417,203.72,203.71,0.75]
[1757025748300,3.65865417,203.72,203.71,0.03]
[1757025752818,4.32865417,203.72,203.71,0.03]
[1757025753312,3.65865417,203.72,203.71,0.03]
[1757025753511,4.32865417,203.72,203.71,0.03]
[1757025758318,9.23735238,203.72,203.71,0.03]
[1757025759314,5.57869821,203.72,203.71,0.03]
[1757025759626,9.48667698,203.72,203.71,0.03]
[1757025760330,11.45484191,203.72,203.71,0.03]
[1757025767232,15.56601268,203.72,203.71,0.03]
[1757025770037,53.66601268,203.72,203.71,0.03]
[1757025772131,49.55484191,203.72,203.71,0.03]
[1757025774540,45.64686314,203.72,203.71,0.03]
[1757025774838,49.55484191,203.72,203.71,0.03]
[1757025777046,49.53484191,203.72,203.71,0.03]
[1757025787549,48.13069673,203.72,203.71,0.03]
[1757025793244,26.0,203.69,203.66,0.03]
[1757025793457,28.50383359,203.69,203.66,0.03]
[1757025793832,42.0994276,203.69,203.66,0.03]
[1757025795253,47.00892387,203.69,203.66,0.48]
[1757025798051,39.59559401,203.69,203.66,0.03]
[1757025798259,26.0,203.68,203.67,0.45]
[1757025801653,26.0,203.68,203.66,0.03]
[1757025801836,26.0,203.68,203.66,0.48]
[1757025802340,26.0,203.68,203.66,0.03]
[1757025802540,26.0,203.68,203.67,0.45]
[1757025802762,26.0,203.68,203.66,0.03]
[1757025803053,26.0,203.68,203.66,0.48]
[1757025803446,5.58049972,203.7,203.66,2.98383359]
[1757025803646,31.58049972,203.7,203.66,2.98383359]
[1757025804155,30.91049972,203.7,203.66,7.44397744]
[1757025804361,5.57873639,203.72,203.67,2.95383359]
[1757025804662,20.34142615,203.72,203.68,0.45]
[1757025804954,32.60757491,203.73,203.69,2.95383359]
[1757025804955,4.10374132,203.73,203.69,2.95383359]
[1757025805142,0.67,203.74,203.69,2.95383359]
[1757025805345,26.0,203.72,203.68,2.50383359]
[1757025805551,0.67,203.71,203.66,0.03]
[1757025806260,8.08285122,203.71,203.66,0.03]
[1757025806560,2.50383359,203.7,203.66,0.03]
[1757025807359,0.67,203.69,203.66,0.03]
[1757025807934,0.67,203.68,203.66,0.03]
[1757025808563,3.17383359,203.7,203.66,0.03]
[1757025808857,0.67,203.69,203.66,0.03]
[1757025809061,26.0,203.72,203.68,2.50383359]
[1757025809264,26.0,203.72,203.69,2.95383359]
[1757025809558,26.0,203.72,203.69,2.50383359]
[1757025809940,4.78515195,203.74,203.7,0.45]
[1757025810139,0.67,203.74,203.7,2.95383359]
[1757025810335,0.67,203.74,203.7,0.45]
[1757025810550,0.67,203.73,203.69,2.50383359]
[1757025810763,0.67,203.72,203.69,2.50383359]
[1757025812557,2.50383359,203.73,203.66,5.38964381]
[1757025812760,8.08286588,203.71,203.66,0.03]
[1757025814977,2.50383359,203.7,203.66,0.03]
[1757025815155,8.08286588,203.71,203.66,0.03]
[1757025815344,0.67,203.69,203.66,0.03]
[1757025815940,0.67,203.68,203.66,0.03]
[1757025817064,5.57970639,203.68,203.66,0.03]
[1757025818351,8.11353998,203.68,203.66,0.03]
[1757025818551,0.67,203.67,203.66,0.03]
[1757025818879,5.57990327,203.67,203.66,0.03]
[1757025823069,0.67,203.67,203.66,0.03]
[1757025823572,5.57990327,203.67,203.66,0.03]
[1757025826253,8.08373686,203.67,203.66,0.03]
[1757025826672,13.57140404,203.67,203.66,0.03]
[1757025829273,11.06757045,203.67,203.66,0.03]
[1757025829465,13.57140404,203.67,203.66,0.03]
[1757025849590,14.98076562,203.67,203.66,0.03]
[1757025857297,20.47535232,203.67,203.66,0.03]
[1757025862795,14.98076562,203.67,203.66,0.03]
[1757025862994,20.47535232,203.67,203.66,0.03]
[1757025870208,34.07094633,203.67,203.66,0.03]
[1757025873419,28.57635963,203.67,203.66,0.03]
[1757025874019,26.0,203.64,203.63,0.03]
[1757025874317,41.87319517,203.64,203.63,0.03]
[1757025874501,42.52319517,203.64,203.63,0.03]
[1757025875122,40.77068512,203.64,203.63,0.03]
[1757025875313,44.68388029,203.64,203.63,0.03]
[1757025876221,49.59450688,203.64,203.63,0.03]
[1757025879128,53.7055499,203.64,203.63,0.03]
[1757025880412,49.59450688,203.64,203.63,0.03]
[1757025881732,45.68131171,203.64,203.63,0.03]
[1757025881934,49.59450688,203.64,203.63,0.03]
[1757025888036,45.68131171,203.64,203.63,0.03]
[1757025888231,49.59450688,203.64,203.63,0.03]
[1757025889741,50.31450688,203.64,203.63,0.03]
[1757025891826,49.59450688,203.64,203.63,0.03]
[1757025893042,45.68131171,203.64,203.63,0.03]
[1757025893235,49.59450688,203.64,203.63,0.03]
[1757025894641,50.31450688,203.64,203.63,0.03]
[1757025895842,54.4255499,203.64,203.63,0.03]
[1757025900339,50.31450688,203.64,203.63,0.03]
[1757025900540,24.31450688,203.64,203.63,0.03]
[1757025900749,20.40131171,203.64,203.63,0.03]
[1757025901048,65.65483016,203.64,203.63,0.03]
[1757025901221,27.71483016,203.64,203.63,0.03]
[1757025901730,44.8910084,203.64,203.63,0.48]
[1757025901935,44.68388029,203.64,203.63,0.03]
[1757025902528,50.31450688,203.64,203.63,0.03]
[1757025902842,49.59450688,203.64,203.63,0.03]
[1757025904241,44.68388029,203.64,203.63,0.03]
[1757025904832,40.77068512,203.64,203.63,0.03]
[1757025905025,40.77068512,203.64,203.63,0.48]
[1757025905632,40.77068512,203.64,203.63,0.03]
[1757025905838,44.68388029,203.64,203.63,0.03]
[1757025907045,50.31450688,203.64,203.63,0.03]
[1757025907643,49.59450688,203.64,203.63,0.03]
[1757025908845,50.31450688,203.64,203.63,0.03]
[1757025909848,54.43483016,203.64,203.63,0.03]
[1757025910842,50.31450688,203.64,203.63,0.03]
[1757025911144,40.77068512,203.64,203.63,0.03]
[1757025911545,43.27537378,203.64,203.63,0.03]
[1757025911846,48.90600037,203.64,203.63,0.03]
[1757025912050,53.02632365,203.64,203.63,0.03]
[1757025913951,43.27537378,203.64,203.63,0.03]
[1757025914941,26.0,203.64,203.63,0.48]
[1757025915549,1.96874616,203.65,203.63,0.48]
[1757025915939,1.96874616,203.65,203.63,0.03]
[1757025916438,4.47343482,203.65,203.63,0.03]
[1757025920060,1.96874616,203.65,203.63,0.03]
[1757025921161,4.47343482,203.65,203.63,0.03]
[1757025921551,5.14343482,203.65,203.63,0.03]
[1757025922761,1.96874616,203.65,203.64,0.45]
[1757025922964,1.96874616,203.65,203.64,2.95468866]
[1757025923140,0.06,203.66,203.64,2.50468866]
[1757025923336,0.06,203.66,203.65,2.95468866]
[1757025923560,0.06,203.66,203.65,8.31588875]
[1757025924548,0.06,203.66,203.65,13.22627421]
[1757025926769,0.06,203.66,203.65,9.8333359]
[1757025927144,0.06,203.66,203.65,7.86507412]
[1757025928165,0.06,203.66,203.65,9.8333359]
[1757025932169,0.06,203.66,203.65,7.86507412]
[1757025934973,0.06,203.66,203.65,21.46066813]
[1757025935186,0.06,203.68,203.65,21.46066813]
[1757025935187,0.06,203.68,203.66,13.59559401]
[1757025935360,1e-08,203.68,203.67,54.47127299]
[1757025935561,1e-08,203.68,203.67,54.92127299]
[1757025935807,0.06,203.69,203.68,13.59559401]
[1757025935808,1e-08,203.69,203.68,13.59559401]
[1757025936073,0.06,203.71,203.68,13.59559401]
[1757025936074,0.06,203.71,203.7,39.59559401]
[1757025936284,0.06,203.71,203.7,52.60995532]
[1757025936459,0.06,203.71,203.7,53.05995532]
[1757025936661,0.06,203.71,203.7,55.02734583]
[1757025937068,0.06,203.71,203.7,59.93652599]
[1757025937464,0.06,203.71,203.7,97.81652599]
[1757025937668,0.06,203.71,203.7,97.32560798]
[1757025938081,0.06,203.71,203.7,97.81652599]
[1757025938284,0.06,203.71,203.7,59.44560798]
[1757025938486,0.06,203.71,203.7,59.93652599]
[1757025938784,0.06,203.71,203.7,87.79777135]
[1757025939171,0.06,203.71,203.7,60.83685334]
[1757025939869,0.06,203.71,203.7,58.86946283]
[1757025940290,0.06,203.71,203.7,21.00946283]
[1757025940471,0.06,203.71,203.7,58.86946283]
[1757025940794,0.06,203.71,203.7,13.59559401]
[1757025940980,0.06,203.71,203.7,53.96028267]
[1757025941564,0.73,203.71,203.7,53.96028267]
[1757025941765,0.73,203.71,203.67,0.45]
[1757025941766,0.73,203.71,203.68,13.59559401]
[1757025941978,0.67,203.7,203.69,37.86]
[1757025943368,3.17468866,203.7,203.65,13.62559401]
[1757025943568,2.50468866,203.67,203.65,0.03]
[1757025943980,0.67,203.66,203.65,0.03]
[1757025944375,7.47362923,203.71,203.65,2.53468866]
[1757025944579,0.67,203.7,203.65,2.53468866]
[1757025944895,0.67,203.69,203.65,2.53468866]
[1757025945194,0.67,203.68,203.65,0.03]
[1757025945576,0.67,203.67,203.65,0.03]
[1757025945879,0.67,203.69,203.65,0.03]
[1757025946202,0.73,203.71,203.68,2.50468866]
[1757025946500,0.67,203.7,203.69,37.86]
[1757025947884,0.06,203.71,203.69,40.36468866]
[1757025948392,0.06,203.71,203.69,45.27408484]
[1757025948695,0.72,203.71,203.7,2.50468866]
[1757025949201,0.06,203.71,203.7,2.50468866]
[1757025950098,0.72,203.71,203.7,2.50468866]
[1757025950286,0.72,203.71,203.69,40.36468866]
[1757025950488,0.66,203.7,203.69,40.36468866]
[1757025951979,0.66,203.7,203.69,37.86]
[1757025952181,0.06,203.71,203.69,40.36468866]
[1757025952386,0.66,203.7,203.69,40.36468866]
[1757025952990,0.72,203.71,203.69,40.36468866]
[1757025953398,0.66,203.7,203.69,40.36468866]
[1757025954288,0.66,203.7,203.65,15.5936621]
[1757025954487,0.66,203.69,203.66,37.86]
[1757025954686,0.66,203.68,203.66,37.86]
[1757025955114,0.66,203.68,203.66,40.36468866]
[1757025955895,0.66,203.7,203.66,45.27480333]
[1757025956094,0.66,203.69,203.66,45.30480333]
[1757025957508,0.06,203.7,203.66,37.89]
[1757025957693,0.66,203.69,203.66,40.39468866]
[1757025957898,0.66,203.68,203.66,40.39468866]
[1757025958209,0.66,203.68,203.66,37.89]
[1757025959505,0.06,203.7,203.66,42.80014132]
[1757025959690,0.66,203.69,203.66,42.80014132]
[1757025960201,0.06,203.7,203.66,37.89]
[1757025960410,0.66,203.68,203.66,37.89]
[1757025960603,0.06,203.7,203.66,45.30480848]
[1757025960604,0.72,203.7,203.66,45.30480848]
[1757025960987,0.66,203.69,203.66,45.30480848]
[1757025961188,0.06,203.7,203.66,45.30480848]
[1757025961390,0.06,203.7,203.68,2.50468866]
[1757025961585,0.06,203.7,203.69,37.86]
[1757025963094,0.06,203.7,203.69,52.39653612]
[1757025963293,0.06,203.7,203.69,18.06786672]
[1757025963614,0.06,203.7,203.69,51.45559401]
[1757025963811,0.72,203.7,203.67,4.90990146]
[1757025963988,0.66,203.69,203.66,0.03]
[1757025964186,0.66,203.69,203.68,1.96777764]
[1757025964610,0.66,203.69,203.67,37.86]
[1757025964910,0.66,203.68,203.67,37.86]
[1757025965295,0.72,203.7,203.67,40.36468866]
[1757025965617,0.66,203.69,203.67,40.36468866]
[1757025965916,0.66,203.68,203.67,40.36468866]
[1757025967112,0.06,203.7,203.67,45.27458586]
[1757025967311,0.06,203.7,203.69,2.50468866]
[1757025967620,0.72,203.7,203.69,37.86]
[1757025967792,0.06,203.7,203.69,37.86]
[1757025968309,0.72,203.7,203.69,37.86]
[1757025968814,0.72,203.7,203.69,40.36468866]
[1757025971315,0.06,203.7,203.69,40.36468866]
[1757025971505,0.06,203.7,203.69,60.72351488]
[1757025971697,0.06,203.7,203.69,64.63201458]
[1757025972095,0.06,203.7,203.69,66.59979223]
[1757025972914,0.06,203.7,203.69,6.87719882]
[1757025973214,0.06,203.7,203.69,46.65792087]
[1757025975014,0.06,203.7,203.69,46.68792087]
[1757025976424,0.06,203.7,203.69,64.64201458]
[1757025976619,0.06,203.7,203.69,58.79279282]
[1757025976798,0.06,203.7,203.69,62.25129252]
[1757025977700,0.06,203.7,203.69,62.70129252]
[1757025978499,0.06,203.7,203.69,66.60979222]
[1757025980918,0.06,203.71,203.69,66.60979222]
[1757025981112,0.06,203.71,203.7,8.75791741]
[1757025981827,0.06,203.71,203.7,10.72540468]
[1757025982525,0.06,203.71,203.7,15.63458484]
[1757025984306,0.06,203.71,203.7,29.23017885]
[1757025985710,0.06,203.71,203.7,28.28926084]
[1757025987726,0.06,203.71,203.7,28.73926084]
[1757025988631,0.06,203.73,203.71,13.59559401]
[1757025988926,0.06,203.74,203.73,3.9084997]